[Event "*** Titled Tuesday 3|2 Blitz"]
[Site "Chess.com"]
[Date "2015.12.01"]
[Round "3"]
[White "gmjoey1"]
[Black "GianmarcoVaR"]
[Result "1/2-1/2"]
[WhiteElo "2427"]
[BlackElo "2316"]
[TimeControl "180+2"]
[EndTime "17:40:06 PST"]
[Termination "Game drawn by agreement"]

1. e4 {[%clk 0:03:01.9]} 1... c6 {[%clk 0:02:59.9]} 2. Nc3 {[%clk 0:02:59.5]}
2... d5 {[%clk 0:03:01.2]} 3. Nf3 {[%clk 0:03:00.8]} 3... Bg4 {[%clk 0:03:01.1]}
4. h3 {[%clk 0:03:01.8]} 4... Bxf3 {[%clk 0:03:02.2]} 5. Qxf3 {[%clk 0:03:02.1]}
5... Nf6 {[%clk 0:03:02.1]} 6. d3 {[%clk 0:02:49.8]} 6... e6 {[%clk 0:03:01.3]}
7. Bd2 {[%clk 0:02:44.8]} 7... Nbd7 {[%clk 0:02:48.3]} 8. g3 {[%clk 0:02:06]}
8... Bb4 {[%clk 0:02:44.4]} 9. Bg2 {[%clk 0:02:00.9]} 9... O-O {[%clk
0:02:42.2]} 10. a3 {[%clk 0:01:48.3]} 10... Bd6 {[%clk 0:02:32.7]} 11. O-O
{[%clk 0:01:48.5]} 11... b5 {[%clk 0:02:32.8]} 12. Qe2 {[%clk 0:01:48.9]} 12...
a5 {[%clk 0:02:28.3]} 13. f4 {[%clk 0:01:41.4]} 13... Bc5+ {[%clk 0:02:17.6]}
14. Kh2 {[%clk 0:01:41.2]} 14... dxe4 {[%clk 0:02:12.6]} 15. Nxe4 {[%clk
0:01:35.2]} 15... Nxe4 {[%clk 0:02:09.6]} 16. dxe4 {[%clk 0:01:34.7]} 16... a4
{[%clk 0:02:01.7]} 17. Rad1 {[%clk 0:01:35]} 17... Nb6 {[%clk 0:01:54.5]} 18. f5
{[%clk 0:01:31.1]} 18... exf5 {[%clk 0:01:52.2]} 19. Rxf5 {[%clk 0:01:29.6]}
19... Qe7 {[%clk 0:01:46.7]} 20. Bg5 {[%clk 0:01:26.2]} 20... f6 {[%clk
0:01:47.8]} 21. Bf4 {[%clk 0:01:24.9]} 21... Nc4 {[%clk 0:01:47.2]} 22. b3
{[%clk 0:01:11]} 22... axb3 {[%clk 0:01:48.1]} 23. cxb3 {[%clk 0:01:12.9]} 23...
Nxa3 {[%clk 0:01:47.9]} 24. Qg4 {[%clk 0:01:07.8]} 24... Rad8 {[%clk 0:01:04.5]}
25. Rxd8 {[%clk 0:01:07.1]} 25... Rxd8 {[%clk 0:01:05.4]} 26. e5 {[%clk
0:01:08.5]} 26... fxe5 {[%clk 0:01:04.4]} 27. Rxe5 {[%clk 0:01:07.8]} 27... Qf8
{[%clk 0:01:04.9]} 28. Bxc6 {[%clk 0:01:02.5]} 28... Bd6 {[%clk 0:00:58.2]} 29.
Bd5+ {[%clk 0:01:03.1]} 29... Kh8 {[%clk 0:00:58.3]} 30. Rf5 {[%clk 0:01:04.2]}
30... Qe8 {[%clk 0:00:53.6]} 31. Rf7 {[%clk 0:01:04.2]} 31... Bf8 {[%clk
0:00:52.9]} 32. Bh6 {[%clk 0:00:49]} 32... Qe5 {[%clk 0:00:48.6]} 33. Qd7 {[%clk
0:00:41.1]} 33... Re8 {[%clk 0:00:15.5]} 34. Bf4 {[%clk 0:00:40.9]} 34... Qe2+
{[%clk 0:00:15.8]} 35. Bg2 {[%clk 0:00:41.3]} 35... Nc2 {[%clk 0:00:16.7]} 36.
Qf5 {[%clk 0:00:41.4]} 36... Kg8 {[%clk 0:00:15.1]} 37. Qd5 {[%clk 0:00:31.4]}
37... Kh8 {[%clk 0:00:11.6]} 38. Bd2 {[%clk 0:00:20.6]} 38... Ne3 {[%clk
0:00:04.9]} 39. Bxe3 {[%clk 0:00:21.1]} 39... Qxe3 {[%clk 0:00:05]} 40. Rf3
{[%clk 0:00:16.2]} 40... Qb6 {[%clk 0:00:03.3]} 41. Qf7 {[%clk 0:00:16.6]} 41...
Qd8 {[%clk 0:00:03.2]} 42. h4 {[%clk 0:00:15.9]} 42... Qe7 {[%clk 0:00:04.6]}
43. Qh5 {[%clk 0:00:16.4]} 43... g6 {[%clk 0:00:05.3]} 44. Qxb5 {[%clk
0:00:17.5]} 44... Bg7 {[%clk 0:00:06.4]} 45. Qc4 {[%clk 0:00:18.4]} 45... Rf8
{[%clk 0:00:07.5]} 46. Rxf8+ {[%clk 0:00:18.8]} 46... Qxf8 {[%clk 0:00:09]} 47.
Qd5 {[%clk 0:00:20.3]} 47... Qb8 {[%clk 0:00:09.3]} 48. Qf3 {[%clk 0:00:22.2]}
48... Be5 {[%clk 0:00:10.2]} 49. Qe3 {[%clk 0:00:22.1]} 49... Kg7 {[%clk
0:00:10.9]} 50. Qf3 {[%clk 0:00:22.8]} 50... Qd6 {[%clk 0:00:11.9]} 51. Bf1
{[%clk 0:00:23.4]} 51... Qd2+ {[%clk 0:00:12]} 52. Be2 {[%clk 0:00:24.1]} 52...
Qc3 {[%clk 0:00:12.5]} 53. Kg2 {[%clk 0:00:26]} 53... Qxf3+ {[%clk 0:00:12.9]}
54. Bxf3 {[%clk 0:00:26.8]} 54... Kf6 {[%clk 0:00:13.6]} 55. Bd5 {[%clk
0:00:28.4]} 55... h5 {[%clk 0:00:12.7]} 56. Kf3 {[%clk 0:00:29.8]} 56... Ke7
{[%clk 0:00:13.1]} 57. Be4 {[%clk 0:00:29.4]} 57... Kf6 {[%clk 0:00:12.7]} 58.
Bc6 {[%clk 0:00:30.8]} 58... Bd6 {[%clk 0:00:13.8]} 59. Be8 {[%clk 0:00:30.7]}
59... Kg7 {[%clk 0:00:14.5]} 60. Kg2 {[%clk 0:00:29.2]} 60... Kf6 {[%clk
0:00:15.7]} 61. Kf3 {[%clk 0:00:30.5]} 61... Kg7 {[%clk 0:00:14.8]} 62. Bd7
{[%clk 0:00:31.2]} 62... Kf6 {[%clk 0:00:15.4]} 63. Bc6 {[%clk 0:00:32.7]} 63...
Kg7 {[%clk 0:00:15.7]} 64. Be8 {[%clk 0:00:34.1]} 64... Kf6 {[%clk 0:00:16.7]}
65. g4 {[%clk 0:00:34.6]} 65... hxg4+ {[%clk 0:00:17.5]} 66. Kxg4 {[%clk
0:00:36.5]} 66... Bb4 {[%clk 0:00:18.8]} 67. Bc6 {[%clk 0:00:37]} 67... Be1
{[%clk 0:00:19.5]} 68. Be4 {[%clk 0:00:37.2]} 68... Kg7 {[%clk 0:00:20.4]} 69.
Kg5 {[%clk 0:00:37.2]} 69... Bd2+ {[%clk 0:00:20.9]} 70. Kg4 {[%clk 0:00:38.1]}
70... Kf6 {[%clk 0:00:22.3]} 71. Bd3 {[%clk 0:00:37.8]} 71... Bb4 {[%clk
0:00:20.6]} 72. Be4 {[%clk 0:00:37.4]} 72... Be1 {[%clk 0:00:19.9]} 73. Bc6
{[%clk 0:00:38.8]} 73... Bb4 {[%clk 0:00:20.8]} 74. Be8 {[%clk 0:00:39.5]} 74...
Be1 {[%clk 0:00:21.5]} 75. Bd7 {[%clk 0:00:39.1]} 75... Bb4 {[%clk 0:00:21.1]}
76. Be8 {[%clk 0:00:40]} 76... Be1 {[%clk 0:00:22]} 77. Bb5 {[%clk 0:00:39.9]}
77... Bb4 {[%clk 0:00:23.9]} 78. Be2 {[%clk 0:00:41]} 78... Be1 {[%clk
0:00:24.5]} 79. Bf3 {[%clk 0:00:42.4]} 79... Bb4 {[%clk 0:00:25]} 80. Kf4 {[%clk
0:00:43.8]} 80... Be1 {[%clk 0:00:26]} 81. h5 {[%clk 0:00:44.9]} 81... Bd2+
{[%clk 0:00:22.8]} 82. Ke4 {[%clk 0:00:44.6]} 82... gxh5 {[%clk 0:00:23.4]} 83.
Bxh5 {[%clk 0:00:45.5]} 83... Ke6 {[%clk 0:00:24.7]} 84. Kd3 {[%clk 0:00:45.8]}
84... Be1 {[%clk 0:00:25.7]} 85. Kc4 {[%clk 0:00:47.7]} 85... Kd6 {[%clk
0:00:26.4]} 86. Bf3 {[%clk 0:00:49.2]} 86... Kc7 {[%clk 0:00:27.3]} 87. Kb5
{[%clk 0:00:50.5]} 87... Kb8 {[%clk 0:00:28.2]} 88. Ka6 {[%clk 0:00:51.5]} 88...
Bb4 {[%clk 0:00:29.2]} 89. Kb5 {[%clk 0:00:52.6]} 89... Be1 {[%clk 0:00:30.8]}
90. Kc4 {[%clk 0:00:53.6]} 90... Bf2 {[%clk 0:00:31.2]} 91. Kb5 {[%clk
0:00:55.5]} 91... Be1 {[%clk 0:00:32.1]} 92. Kc4 {[%clk 0:00:56.7]} 92... Kc7
{[%clk 0:00:32.8]} 93. Kb5 {[%clk 0:00:55.5]} 1/2-1/2

[Event "*** Titled Tuesday 3|2 Blitz"]
[Site "Chess.com"]
[Date "2015.12.01"]
[Round "4"]
[White "Anton_Demchenko"]
[Black "gumersindo"]
[Result "1-0"]
[WhiteElo "2647"]
[BlackElo "2201"]
[TimeControl "180+2"]
[EndTime "17:44:32 PST"]
[Termination "Anton_Demchenko won by resignation"]

1. e4 {[%clk 0:03:01.9]} 1... c6 {[%clk 0:03:01]} 2. d4 {[%clk 0:03:02.6]} 2...
d5 {[%clk 0:03:02.6]} 3. Nc3 {[%clk 0:03:04.4]} 3... dxe4 {[%clk 0:03:03.4]} 4.
Nxe4 {[%clk 0:03:06.3]} 4... Bf5 {[%clk 0:03:05]} 5. Ng3 {[%clk 0:03:07]} 5...
Bg6 {[%clk 0:03:05.9]} 6. Nf3 {[%clk 0:03:08.9]} 6... Nd7 {[%clk 0:03:04.7]} 7.
h4 {[%clk 0:03:09.8]} 7... h6 {[%clk 0:03:05.4]} 8. Bd3 {[%clk 0:03:11.5]} 8...
Bxd3 {[%clk 0:03:05.7]} 9. Qxd3 {[%clk 0:03:13.4]} 9... Ngf6 {[%clk 0:03:07]}
10. Bf4 {[%clk 0:03:14.1]} 10... e6 {[%clk 0:03:06.5]} 11. O-O-O {[%clk
0:03:14.6]} 11... Nd5 {[%clk 0:03:02]} 12. Bd2 {[%clk 0:03:15.1]} 12... Be7
{[%clk 0:02:58.2]} 13. Nf1 {[%clk 0:03:16]} 13... Qc7 {[%clk 0:02:46.7]} 14. Ne3
{[%clk 0:03:13]} 14... Nf4 {[%clk 0:02:42.5]} 15. Qf1 {[%clk 0:03:10.4]} 15...
Nf6 {[%clk 0:02:41.6]} 16. Kb1 {[%clk 0:03:07.2]} 16... O-O-O {[%clk 0:02:41.4]}
17. Nc4 {[%clk 0:03:06.2]} 17... N4d5 {[%clk 0:02:37.1]} 18. Nce5 {[%clk
0:03:07]} 18... Rhf8 {[%clk 0:02:36.1]} 19. c4 {[%clk 0:03:07.9]} 19... Nb6
{[%clk 0:02:33.6]} 20. Bf4 {[%clk 0:02:56.3]} 20... c5 {[%clk 0:02:13.2]} 21.
Ng6 {[%clk 0:02:51]} 21... Qd7 {[%clk 0:02:08.8]} 22. Nxf8 {[%clk 0:02:41.1]}
22... Bxf8 {[%clk 0:02:08.8]} 23. dxc5 {[%clk 0:02:27.5]} 23... Qxd1+ {[%clk
0:02:08.8]} 24. Qxd1 {[%clk 0:02:29.4]} 24... Rxd1+ {[%clk 0:02:09.8]} 25. Rxd1
{[%clk 0:02:31.3]} 25... Bxc5 {[%clk 0:02:11]} 26. Ne5 {[%clk 0:02:32]} 26...
Bxf2 {[%clk 0:02:09.7]} 27. Nxf7 {[%clk 0:02:33]} 27... Bxh4 {[%clk 0:02:10.2]}
28. Nd6+ {[%clk 0:02:32.7]} 1-0

[Event "*** Titled Tuesday 3|2 Blitz"]
[Site "Chess.com"]
[Date "2015.12.01"]
[Round "4"]
[White "the_drake"]
[Black "Konavets"]
[Result "0-1"]
[WhiteElo "2000"]
[BlackElo "2505"]
[TimeControl "180+2"]
[EndTime "17:45:24 PST"]
[Termination "Konavets won by resignation"]

1. e4 {[%clk 0:03:01.9]} 1... c5 {[%clk 0:02:56.1]} 2. Nf3 {[%clk 0:03:02]} 2...
d6 {[%clk 0:02:57.4]} 3. d4 {[%clk 0:03:02.9]} 3... cxd4 {[%clk 0:02:59.3]} 4.
Nxd4 {[%clk 0:03:04.1]} 4... a6 {[%clk 0:03:01.2]} 5. Nc3 {[%clk 0:03:05.1]}
5... Nf6 {[%clk 0:03:01.1]} 6. Be3 {[%clk 0:03:05.8]} 6... Ng4 {[%clk
0:03:02.3]} 7. Bg5 {[%clk 0:03:05.9]} 7... h6 {[%clk 0:03:03.6]} 8. Bh4 {[%clk
0:03:06.7]} 8... g5 {[%clk 0:03:05.1]} 9. Bg3 {[%clk 0:03:07.4]} 9... Bg7 {[%clk
0:03:06.7]} 10. Be2 {[%clk 0:03:05.9]} 10... h5 {[%clk 0:03:06.9]} 11. f3 {[%clk
0:03:04.1]} 11... Ne3 {[%clk 0:03:06.5]} 12. Qd3 {[%clk 0:03:01]} 12... Bxd4
{[%clk 0:03:07.4]} 13. Rc1 {[%clk 0:02:20.7]} 13... Nc6 {[%clk 0:03:07.8]} 14.
Nd5 {[%clk 0:02:14.8]} 14... Nxg2+ {[%clk 0:02:57]} 15. Kf1 {[%clk 0:02:14]}
15... Bh3 {[%clk 0:02:57.7]} 16. Qa3 {[%clk 0:02:00.3]} 16... e6 {[%clk
0:02:41.9]} 17. Nb4 {[%clk 0:01:53.5]} 17... h4 {[%clk 0:02:22]} 18. Nxc6 {[%clk
0:01:49.7]} 18... bxc6 {[%clk 0:02:22.7]} 19. Bxd6 {[%clk 0:01:49.1]} 19... Qb6
{[%clk 0:02:10.1]} 20. c4 {[%clk 0:01:36.6]} 20... Bxb2 {[%clk 0:02:07.1]} 21.
Rb1 {[%clk 0:01:28]} 21... Ne3+ {[%clk 0:02:07.2]} 22. Kf2 {[%clk 0:01:20.4]}
22... Ng4+ {[%clk 0:02:05.5]} 23. Ke1 {[%clk 0:01:19]} 23... Qf2+ {[%clk
0:02:07.4]} 24. Kd2 {[%clk 0:01:18.2]} 24... Bxa3 {[%clk 0:02:09.3]} 25. Bxa3
{[%clk 0:01:18.6]} 25... Qe3+ {[%clk 0:02:09.7]} 0-1

[Event "*** Titled Tuesday 3|2 Blitz"]
[Site "Chess.com"]
[Date "2015.12.01"]
[Round "4"]
[White "pedromartinez91"]
[Black "Gabrinsky"]
[Result "0-1"]
[WhiteElo "2179"]
[BlackElo "2344"]
[TimeControl "180+2"]
[EndTime "17:45:55 PST"]
[Termination "Gabrinsky won on time"]

1. e4 {[%clk 0:03:01.9]} 1... e6 {[%clk 0:03:01.9]} 2. d4 {[%clk 0:03:02.2]}
2... d5 {[%clk 0:03:03.4]} 3. Nd2 {[%clk 0:03:03.3]} 3... a6 {[%clk 0:03:04.7]}
4. Bd3 {[%clk 0:03:03.2]} 4... c5 {[%clk 0:03:05.7]} 5. exd5 {[%clk 0:03:03.2]}
5... Qxd5 {[%clk 0:03:06.4]} 6. Ngf3 {[%clk 0:03:02.9]} 6... Nf6 {[%clk
0:03:07.2]} 7. dxc5 {[%clk 0:03:02.6]} 7... Bxc5 {[%clk 0:03:08]} 8. O-O {[%clk
0:03:03]} 8... O-O {[%clk 0:03:09.2]} 9. Qe2 {[%clk 0:03:04]} 9... Nc6 {[%clk
0:03:09.2]} 10. Ne4 {[%clk 0:03:04.9]} 10... Be7 {[%clk 0:03:10.5]} 11. Rd1
{[%clk 0:03:04.2]} 11... Qh5 {[%clk 0:03:08.8]} 12. Bg5 {[%clk 0:02:55.3]} 12...
Nxe4 {[%clk 0:03:03.7]} 13. Qxe4 {[%clk 0:02:56.2]} 13... Bxg5 {[%clk
0:02:46.8]} 14. Nxg5 {[%clk 0:02:37]} 14... f5 {[%clk 0:02:47.7]} 15. Qe3 {[%clk
0:02:28.1]} 15... f4 {[%clk 0:02:42.7]} 16. Qh3 {[%clk 0:02:28.6]} 16... Qxg5
{[%clk 0:02:40.3]} 17. Qxh7+ {[%clk 0:02:25.3]} 17... Kf7 {[%clk 0:02:41.5]} 18.
h4 {[%clk 0:02:24.4]} 18... Qh6 {[%clk 0:02:35.8]} 19. Qe4 {[%clk 0:02:23.9]}
19... Qf6 {[%clk 0:02:22.7]} 0-1

[Event "*** Titled Tuesday 3|2 Blitz"]
[Site "Chess.com"]
[Date "2015.12.01"]
[Round "4"]
[White "dawnrule"]
[Black "Ar4uha"]
[Result "1-0"]
[WhiteElo "2234"]
[BlackElo "2337"]
[TimeControl "180+2"]
[EndTime "17:46:07 PST"]
[Termination "dawnrule won by resignation"]

1. e4 {[%clk 0:03:01.9]} 1... d5 {[%clk 0:03:00.7]} 2. exd5 {[%clk 0:03:02.4]}
2... Nf6 {[%clk 0:03:02.1]} 3. Nc3 {[%clk 0:03:03]} 3... Nxd5 {[%clk 0:03:03.2]}
4. Bc4 {[%clk 0:03:04.6]} 4... Nb6 {[%clk 0:03:04.3]} 5. Bb3 {[%clk 0:03:04.8]}
5... c5 {[%clk 0:03:05.8]} 6. d3 {[%clk 0:03:05.2]} 6... g6 {[%clk 0:03:04]} 7.
Nf3 {[%clk 0:03:02.4]} 7... Nc6 {[%clk 0:03:04.8]} 8. Ng5 {[%clk 0:02:50.9]}
8... e6 {[%clk 0:03:05.1]} 9. Qf3 {[%clk 0:02:42.8]} 9... Qe7 {[%clk 0:02:57.3]}
10. Nge4 {[%clk 0:02:42.2]} 10... Nd4 {[%clk 0:02:58.5]} 11. Qg3 {[%clk
0:02:32.9]} 11... Bg7 {[%clk 0:02:56.6]} 12. Nd6+ {[%clk 0:02:28.9]} 12... Kf8
{[%clk 0:02:54.5]} 13. Nde4 {[%clk 0:02:15.5]} 13... Bd7 {[%clk 0:02:47]} 14.
Bf4 {[%clk 0:02:12.4]} 14... e5 {[%clk 0:02:47.9]} 15. Bd2 {[%clk 0:02:07.7]}
15... Rc8 {[%clk 0:02:46.7]} 16. O-O-O {[%clk 0:02:02.5]} 16... c4 {[%clk
0:02:47.3]} 17. dxc4 {[%clk 0:02:02.2]} 17... Nxc4 {[%clk 0:02:49.2]} 18. Bxc4
{[%clk 0:01:56.4]} 18... Rxc4 {[%clk 0:02:51.1]} 19. Kb1 {[%clk 0:01:57.4]}
19... Bf5 {[%clk 0:02:51.5]} 20. f3 {[%clk 0:01:50.9]} 20... h6 {[%clk
0:02:45.8]} 21. Nd5 {[%clk 0:01:45.1]} 21... Qc5 {[%clk 0:02:43.4]} 22. Nxc5
{[%clk 0:01:23.1]} 22... Rxc2 {[%clk 0:02:00.9]} 23. Ne4 {[%clk 0:01:13.3]}
23... h5 {[%clk 0:01:35.3]} 24. Bb4+ {[%clk 0:01:11.9]} 24... Ke8 {[%clk
0:01:32]} 25. Rxd4 {[%clk 0:01:08.4]} 1-0

[Event "*** Titled Tuesday 3|2 Blitz"]
[Site "Chess.com"]
[Date "2015.12.01"]
[Round "4"]
[White "StellarChessPro"]
[Black "alex_zapata"]
[Result "1/2-1/2"]
[WhiteElo "2250"]
[BlackElo "2161"]
[TimeControl "180+2"]
[EndTime "17:48:06 PST"]
[Termination "Game drawn by repetition"]

1. d4 {[%clk 0:02:58.5]} 1... d5 {[%clk 0:03:00.4]} 2. Nf3 {[%clk 0:02:59.1]}
2... Nf6 {[%clk 0:03:01.7]} 3. e3 {[%clk 0:03:00]} 3... c5 {[%clk 0:03:00.9]} 4.
c4 {[%clk 0:03:01.9]} 4... cxd4 {[%clk 0:02:56.9]} 5. Qxd4 {[%clk 0:03:01.8]}
5... Nc6 {[%clk 0:02:56.9]} 6. Qd1 {[%clk 0:03:02.6]} 6... e6 {[%clk 0:02:56.7]}
7. Nc3 {[%clk 0:03:02.6]} 7... Bb4 {[%clk 0:02:55.9]} 8. Bd2 {[%clk 0:03:03.4]}
8... O-O {[%clk 0:02:53.7]} 9. Be2 {[%clk 0:03:03.9]} 9... dxc4 {[%clk
0:02:52.9]} 10. Bxc4 {[%clk 0:03:04.4]} 10... a6 {[%clk 0:02:53.9]} 11. O-O
{[%clk 0:03:05.1]} 11... b5 {[%clk 0:02:52.5]} 12. Be2 {[%clk 0:03:05]} 12...
Bb7 {[%clk 0:02:53.1]} 13. Rc1 {[%clk 0:03:05.9]} 13... Rc8 {[%clk 0:02:52.5]}
14. a3 {[%clk 0:03:01.8]} 14... Bd6 {[%clk 0:02:46.2]} 15. Re1 {[%clk 0:02:59]}
15... Qe7 {[%clk 0:02:46.7]} 16. e4 {[%clk 0:02:53.5]} 16... Rfd8 {[%clk
0:02:38.9]} 17. Qb3 {[%clk 0:02:54.5]} 17... Ne5 {[%clk 0:02:31.3]} 18. Bg5
{[%clk 0:02:51.5]} 18... h6 {[%clk 0:02:26.8]} 19. Bh4 {[%clk 0:02:49.1]} 19...
Ng6 {[%clk 0:02:13.2]} 20. Bg3 {[%clk 0:02:48.8]} 20... Bxg3 {[%clk 0:02:12.3]}
21. hxg3 {[%clk 0:02:50.7]} 21... Nxe4 {[%clk 0:02:12.8]} 22. Nxe4 {[%clk
0:02:45]} 22... Bxe4 {[%clk 0:02:14.7]} 23. a4 {[%clk 0:02:41]} 23... Bd5 {[%clk
0:02:11.4]} 24. Qe3 {[%clk 0:02:36.8]} 24... bxa4 {[%clk 0:02:03.9]} 25. Bxa6
{[%clk 0:02:37.4]} 25... Rxc1 {[%clk 0:02:03.1]} 26. Rxc1 {[%clk 0:02:39.3]}
26... Bb3 {[%clk 0:01:59.7]} 27. Qb6 {[%clk 0:02:25.6]} 27... Qd6 {[%clk
0:01:53.8]} 28. Qa7 {[%clk 0:02:15.2]} 28... Bd5 {[%clk 0:01:46]} 29. Bb5 {[%clk
0:02:09]} 29... Bxf3 {[%clk 0:01:32.3]} 30. gxf3 {[%clk 0:02:10.9]} 30... Ne5
{[%clk 0:01:24]} 31. Be2 {[%clk 0:02:00.7]} 31... Qd2 {[%clk 0:01:21.7]} 32. Rd1
{[%clk 0:02:01.7]} 32... Qxe2 {[%clk 0:01:15.4]} 33. Rxd8+ {[%clk 0:02:02.7]}
33... Kh7 {[%clk 0:01:16.9]} 34. Qe3 {[%clk 0:01:31.8]} 34... Nxf3+ {[%clk
0:01:04.7]} 35. Kg2 {[%clk 0:01:31.5]} 35... Ne1+ {[%clk 0:01:05.3]} 36. Kg1
{[%clk 0:00:58.4]} 36... Nf3+ {[%clk 0:00:56.1]} 37. Kg2 {[%clk 0:00:59.5]}
37... Ne1+ {[%clk 0:00:54]} 38. Kg1 {[%clk 0:01:00.6]} 38... Nf3+ {[%clk
0:00:48.8]} 39. Kg2 {[%clk 0:01:01.7]} 39... Ne1+ {[%clk 0:00:44.5]} 40. Kg1
{[%clk 0:01:02.7]} 40... Nf3+ {[%clk 0:00:45.1]} 41. Kg2 {[%clk 0:01:04.1]}
41... Ne1+ {[%clk 0:00:46.1]} 42. Kg1 {[%clk 0:01:05.3]} 42... Nf3+ {[%clk
0:00:47]} 1/2-1/2

[Event "*** Titled Tuesday 3|2 Blitz"]
[Site "Chess.com"]
[Date "2015.12.01"]
[Round "4"]
[White "ArnaudovP"]
[Black "Hikaru"]
[Result "0-1"]
[WhiteElo "2320"]
[BlackElo "2903"]
[TimeControl "180+2"]
[EndTime "17:48:36 PST"]
[Termination "Hikaru won by checkmate"]

1. Nf3 {[%clk 0:03:01.9]} 1... g6 {[%clk 0:02:58.3]} 2. d4 {[%clk 0:03:02.1]}
2... f5 {[%clk 0:02:57.7]} 3. g3 {[%clk 0:03:01.3]} 3... Bg7 {[%clk 0:02:57]} 4.
Bg2 {[%clk 0:03:02.8]} 4... Nf6 {[%clk 0:02:58.7]} 5. O-O {[%clk 0:03:04.4]}
5... O-O {[%clk 0:02:59.7]} 6. Nbd2 {[%clk 0:03:05.5]} 6... d6 {[%clk
0:02:58.5]} 7. Re1 {[%clk 0:03:06.2]} 7... Ne4 {[%clk 0:02:55.1]} 8. Nxe4 {[%clk
0:03:01.9]} 8... fxe4 {[%clk 0:02:55.1]} 9. Ng5 {[%clk 0:03:03.3]} 9... d5
{[%clk 0:02:56.6]} 10. f3 {[%clk 0:03:03.4]} 10... h6 {[%clk 0:02:31.7]} 11. Nh3
{[%clk 0:03:02.2]} 11... Nc6 {[%clk 0:02:30.6]} 12. c3 {[%clk 0:03:01.8]} 12...
e5 {[%clk 0:02:28.5]} 13. fxe4 {[%clk 0:02:57.3]} 13... dxe4 {[%clk 0:02:15.2]}
14. e3 {[%clk 0:02:48.5]} 14... Bf5 {[%clk 0:01:42.1]} 15. Nf2 {[%clk
0:02:48.3]} 15... Qe7 {[%clk 0:01:41.5]} 16. Qb3+ {[%clk 0:02:35.5]} 16... Kh7
{[%clk 0:01:41.5]} 17. Qxb7 {[%clk 0:02:34.1]} 17... Qf6 {[%clk 0:01:42.8]} 18.
Rf1 {[%clk 0:02:30.3]} 18... Rab8 {[%clk 0:01:37.5]} 19. Qa6 {[%clk 0:02:26.6]}
19... exd4 {[%clk 0:01:38.8]} 20. Nxe4 {[%clk 0:02:13.3]} 20... Qe6 {[%clk
0:01:27]} 21. Nc5 {[%clk 0:02:12.6]} 21... Qe7 {[%clk 0:01:28.2]} 22. Qxc6
{[%clk 0:02:11.5]} 22... dxc3 {[%clk 0:01:24]} 23. bxc3 {[%clk 0:02:04.2]} 23...
Bxc3 {[%clk 0:01:22.6]} 24. Nb3 {[%clk 0:01:33.2]} 24... Bxa1 {[%clk 0:01:21.5]}
25. Nxa1 {[%clk 0:01:33.8]} 25... Rb1 {[%clk 0:01:22.9]} 26. Nb3 {[%clk
0:01:30.1]} 26... a5 {[%clk 0:01:20.5]} 27. Qa4 {[%clk 0:01:22.5]} 27... Be6
{[%clk 0:01:15.7]} 28. Qd4 {[%clk 0:01:11.1]} 28... Bxb3 {[%clk 0:01:08.9]} 29.
Rxf8 {[%clk 0:00:41]} 29... Qxf8 {[%clk 0:01:07]} 30. Qc3 {[%clk 0:00:31.8]}
30... Qg7 {[%clk 0:01:06.9]} 31. Qc5 {[%clk 0:00:21.5]} 31... Bxa2 {[%clk
0:00:57.3]} 32. Be4 {[%clk 0:00:21.9]} 32... Ra1 {[%clk 0:00:53.6]} 33. Kg2
{[%clk 0:00:22.2]} 33... Qf7 {[%clk 0:00:54.9]} 34. Bd3 {[%clk 0:00:21]} 34...
Be6 {[%clk 0:00:52.8]} 35. Bb2 {[%clk 0:00:20.3]} 35... Bd5+ {[%clk 0:00:51.5]}
36. e4 {[%clk 0:00:20.3]} 36... Bxe4+ {[%clk 0:00:50.6]} 37. Bxe4 {[%clk
0:00:21.1]} 37... Qf1# {[%clk 0:00:50.5]} 0-1

[Event "*** Titled Tuesday 3|2 Blitz"]
[Site "Chess.com"]
[Date "2015.12.01"]
[Round "4"]
[White "DanielNaroditsky"]
[Black "Yaacovn"]
[Result "1-0"]
[WhiteElo "2561"]
[BlackElo "2625"]
[TimeControl "180+2"]
[EndTime "17:48:38 PST"]
[Termination "DanielNaroditsky won by resignation"]

1. d4 {[%clk 0:03:01.9]} 1... Nf6 {[%clk 0:02:54.4]} 2. c4 {[%clk 0:03:02.8]}
2... e5 {[%clk 0:02:52.4]} 3. dxe5 {[%clk 0:03:01.9]} 3... Ne4 {[%clk
0:02:53.4]} 4. a3 {[%clk 0:03:02.1]} 4... d6 {[%clk 0:02:53]} 5. Nf3 {[%clk
0:03:02.7]} 5... Bf5 {[%clk 0:02:53.6]} 6. Nbd2 {[%clk 0:02:41]} 6... Nc6 {[%clk
0:02:49]} 7. Nxe4 {[%clk 0:02:36.7]} 7... Bxe4 {[%clk 0:02:48.9]} 8. Ng5 {[%clk
0:02:29.5]} 8... Bf5 {[%clk 0:02:47.8]} 9. e4 {[%clk 0:02:27.7]} 9... Bd7 {[%clk
0:02:47.5]} 10. exd6 {[%clk 0:02:14.2]} 10... Bxd6 {[%clk 0:02:47.3]} 11. Be2
{[%clk 0:01:54.5]} 11... Qe7 {[%clk 0:02:45.1]} 12. Be3 {[%clk 0:01:29.8]} 12...
O-O-O {[%clk 0:02:30.4]} 13. Qc2 {[%clk 0:01:28.4]} 13... Rhe8 {[%clk
0:02:21.5]} 14. c5 {[%clk 0:01:24.2]} 14... Be5 {[%clk 0:02:17.2]} 15. O-O-O
{[%clk 0:01:25.8]} 15... h6 {[%clk 0:02:08.1]} 16. Nf3 {[%clk 0:01:26.8]} 16...
Bf6 {[%clk 0:02:09.4]} 17. Bc4 {[%clk 0:01:26.2]} 17... Bg4 {[%clk 0:01:57.8]}
18. h3 {[%clk 0:01:21.8]} 18... Bxf3 {[%clk 0:01:54.8]} 19. gxf3 {[%clk
0:01:22.2]} 19... Kb8 {[%clk 0:01:19.8]} 20. Bd5 {[%clk 0:01:17.5]} 20... g5
{[%clk 0:00:54]} 21. Qb3 {[%clk 0:01:17.2]} 21... Na5 {[%clk 0:00:47]} 22. Qb4
{[%clk 0:01:12.8]} 22... c6 {[%clk 0:00:45.9]} 23. Qxa5 {[%clk 0:01:06.1]} 23...
cxd5 {[%clk 0:00:44.9]} 24. exd5 {[%clk 0:01:05.5]} 24... Qe5 {[%clk 0:00:43.9]}
25. Qb5 {[%clk 0:01:02.9]} 25... a6 {[%clk 0:00:43.5]} 26. Qb3 {[%clk
0:01:03.8]} 26... Ka8 {[%clk 0:00:34.4]} 27. Kb1 {[%clk 0:00:56.5]} 27... Qf5+
{[%clk 0:00:33.1]} 28. Ka2 {[%clk 0:00:57.3]} 28... Qxf3 {[%clk 0:00:33.4]} 29.
c6 {[%clk 0:00:57.1]} 29... bxc6 {[%clk 0:00:06.7]} 30. Qb6 {[%clk 0:00:57.6]}
30... Rxe3 {[%clk 0:00:07.4]} 31. Qxa6+ {[%clk 0:00:53.2]} 31... Kb8 {[%clk
0:00:07.3]} 32. Qb6+ {[%clk 0:00:54.9]} 32... Ka8 {[%clk 0:00:08.4]} 33. Qxc6+
{[%clk 0:00:51.9]} 33... Kb8 {[%clk 0:00:09.4]} 34. Qb6+ {[%clk 0:00:52.8]}
34... Ka8 {[%clk 0:00:10.3]} 35. fxe3 {[%clk 0:00:49.6]} 35... Qe4 {[%clk
0:00:09.7]} 36. Qa6+ {[%clk 0:00:48.8]} 36... Kb8 {[%clk 0:00:09.6]} 37. Qb6+
{[%clk 0:00:50.2]} 37... Ka8 {[%clk 0:00:10.4]} 38. Qxf6 {[%clk 0:00:51.3]} 1-0